Cogmind - Beta 14 *** ADVENTURER MODE // 2024.08.19 @ 16:37:08 Player: LegoMDS Result: Destroyed by EX-DEC with AWS/EX-DEC Performance ------------- Evolutions (0) 0 Regions Visited (3) 600 Robots Destroyed (14) 70 Value Destroyed (420) 420 Prototype IDs (23) 460 Alien Tech Used (0) 0 Bonus (300) 300 TOTAL SCORE: 1850 Bonus ------- Aligned with FarCom 300 Cogmind --------- Core Integrity 0/250 Matter 282/300 Energy 160/160 System Corruption 1% Temperature Cool (0) Movement Walking (120) Location -10/Exiles Parts ------- > --- POWER (1) -------- Light Nuclear Core > --- PROPULSION (2) --- Improved Aluminum Leg Improved Aluminum Leg > --- UTILITY (2) ------ Medium Storage Unit Structural Scanner > --- WEAPON (2) ------- Particle Cannon Improved Light Cannon > --- INVENTORY (10) --- Light Ion Engine Aluminum Leg Improved Aluminum Leg Improved Heat Sink Targeting Computer ECM Suite AWS/Autocannon Rocket Launcher Peak State ------------ > --- POWER ------------ Light Nuclear Core > --- PROPULSION ------- Improved Aluminum Leg Improved Aluminum Leg > --- UTILITY ---------- Medium Storage Unit Structural Scanner > --- WEAPON ----------- Particle Cannon Improved Light Cannon > --- INVENTORY -------- Light Ion Engine Aluminum Leg Improved Aluminum Leg Improved Heat Sink Targeting Computer ECM Suite AWS/Autocannon Rocket Launcher [Rating: 17] Favorites ----------- Power Ion Engine Engine Ion Engine Power Core Light Nuclear Core Propulsion Improved Aluminum Leg Leg Improved Aluminum Leg Utility Medium Storage Unit Device Structural Scanner Storage Medium Storage Unit Weapon Particle Cannon Energy Gun Medium Laser Energy Cannon Particle Cannon Ballistic Gun Assault Rifle Ballistic Cannon Improved Light Cannon Launcher Rocket Launcher Build | -11 -10 -10 -10 ------- Run | Yrd Mat Min Exi Slots Evolved . | . . . . Power . | . . . . Propulsion . | . . . . Utility . | . . . . Weapon . | . . . . Parts Attached 21 | 7 7 6 1 Power 3 | 2 . . 1 Engine 2 | 2 . . . Core 1 | . . . 1 Reactor . | . . . . Propulsion 7 | 2 3 2 . Treads . | . . . . Leg 7 | 2 3 2 . Wheel . | . . . . Hover . | . . . . Flight . | . . . . Utility 5 | 1 3 1 . Device 3 | . 2 1 . Storage 2 | 1 1 . . Processor . | . . . . Hackware . | . . . . Protection . | . . . . Artifact . | . . . . Weapon 6 | 2 1 3 . Energy Gun 1 | 1 . . . Energy Cannon 2 | . 1 1 . Ballistic Gun 1 | 1 . . . Ballistic Cannon 1 | . . 1 . Launcher 1 | . . 1 . Special Weapon . | . . . . Impact Weapon . | . . . . Slashing Weapon . | . . . . Piercing Weapon . | . . . . Special Melee Weapon . | . . . . Unidentified Prototypes . | . . . . Parts Lost 3 | . . 3 . Power . | . . . . Propulsion 1 | . . 1 . Utility 1 | . . 1 . Weapon 1 | . . 1 . Highest Loss Streak 3 | . . 3 . To Critical Strikes . | . . . . Average Slot Usage (%) 96 | . 93 98 100 Engine 12 | . 14 14 7 Core 1 | . . . 6 Leg 28 | . 28 28 28 Device 10 | . 7 12 14 Storage 14 | . 14 14 14 Energy Gun 2 | . 5 . . Energy Cannon 10 | . 8 11 14 Ballistic Gun 7 | . 14 2 . Ballistic Cannon 6 | . . 11 14 Peak Build Rating 17 | 6 12 12 17 Average Rating 10 | 4 9 11 14 On Entrance 7 | . 6 12 12 Naked Turns . | . . . . Heaviest Build 26 | 14 26 24 24 Greatest Support 26 | 20 26 26 26 Greatest Overweight (x) . | . . . . Average Overweight (x) . | . . . . Largest Inventory Capacity 10 | 8 10 10 10 Average Capacity 9 | 6 8 10 10 Most Carried 10 | 4 9 9 10 Average Carried 6 | 1 5 7 8 Final Capacity 10 | 8 10 10 10 Final Carried 10 | 2 8 8 10 Class Distribution -------------------- 100% | Mutant Dominant Class ---------------- Mutant | -10/Materials Mutant | -10/Mines Mutant | -10/Exiles Resources | -11 -10 -10 -10 ----------- Run | Yrd Mat Min Exi Matter Collected 594 | 189 228 177 . Remotely . | . . . . Salvage Created 501 | . 316 185 . Parts 26 | . 18 8 . Haulers Intercepted . | . . . . Recyclers Shooed . | . . . . Parts Field Recycled . | . . . . Retrieved Matter . | . . . . Parts Self-Destructed . | . . . . Prevented . | . . . . Kills | -11 -10 -10 -10 ------- Run | Yrd Mat Min Exi Combat Hostiles Destroyed 28 | . 5 23 . Guns 6 | . 4 2 . Cannons 5 | . 1 4 . AOE 17 | . . 17 . Classes Destroyed 5 | . 3 2 . Worker 2 | . 1 1 . Watcher 3 | . 3 . . Grunt 7 | . 5 2 . Demolisher 2 | . . 2 . Assembled 19 | . . 19 . Best Kill Streak 22 | . 3 22 . Combat Bots Only 21 | . 3 21 . Max Kills in Single Turn 7 | . 2 7 . Gunslinging . | . . . . Exploded 6 | . . 6 . Melee . | . . . . Uniques/NPCs Destroyed . | . . . . Combat | -11 -10 -10 -10 -------- Run | Yrd Mat Min Exi Hostile Shots Fired 86 | . 36 48 2 Missed 24 | . 6 18 . Damage Taken 929 | . 270 634 25 Core 257 | . 50 194 13 Absorbed by Shields . | . . . . Ignored by Resistances 268 | . 84 177 7 Core Remaining (%) 100 | 100 . . . Volleys Fired 42 | . 30 12 . Largest 2 | . 2 2 . Hottest 107 | . 88 107 . Shots Fired 85 | . 60 24 1 Gun 52 | . 46 6 . Cannon 26 | . 14 11 1 Launcher 7 | . . 7 . Special . | . . . . Kinetic 42 | . 30 12 . Thermal 36 | . 30 5 1 Explosive 7 | . . 7 . Electromagnetic . | . . . . Robot Hit Streak 9 | . 9 9 . Robot Miss Streak 5 | . 5 2 1 Penetration Max . | . . . . Secondary Targets 2 | . 2 . . Max Gunslinging Chain 1 | . 1 . . Shots Hit Robots 57 | . 41 16 . Core Hits 60 | . 13 47 . Critical Kills . | . . . . Critical Parts Destroyed . | . . . . Critical Strikes 1 | . 1 . . Burn 1 | . 1 . . Melee Attacks . | . . . . Impact . | . . . . Slashing . | . . . . Piercing . | . . . . Sneak Attacks . | . . . . Combat Hostiles . | . . . . Follow-up Attacks . | . . . . Damage Inflicted 1827 | . 654 1173 . Guns 514 | . 451 63 . Cannons 415 | . 203 212 . Explosions 898 | . . 898 . Melee . | . . . . Ramming . | . . . . Kinetic 472 | . 299 173 . Thermal 457 | . 355 102 . Explosive 898 | . . 898 . Electromagnetic . | . . . . Impact . | . . . . Slashing . | . . . . Piercing . | . . . . Highest Corruption 1 | . 1 1 1 Average Corruption 1 | . 1 1 1 Corruption Purged . | . . . . Corruption Blocked . | . . . . Effects 3 | . . 1 2 Matter Fused 1 | . . 1 . Data Loss (minor) 1 | . . . 1 Misfires 1 | . . . 1 Overload Shots . | . . . . Overflow Damage 34 | . 10 24 . Projectiles 10 | . 10 . . Explosions 24 | . . 24 . Melee . | . . . . Knockbacks . | . . . . Impact . | . . . . Kinetic . | . . . . Secondary . | . . . . Self-Inflicted Damage 52 | . . 52 . Shots 3 | . . 3 . Rammed . | . . . . Targets Rammed . | . . . . Kicked . | . . . . Crushed . | . . . . Highest Temperature 264 | . 264 135 36 Average Temperature 104 | . 127 64 19 Received Heat Transfer 230 | . 195 35 . Effects 1 | . 1 . . Energy Bleed 1 | . 1 . . Siege Activations . | . . . . Robots Corrupted . | . . . . Combat Hostiles . | . . . . Parts Fried . | . . . . Impact Corruptions . | . . . . Robots Melted . | . . . . Combat Hostiles . | . . . . Parts Melted . | . . . . Heat Transferred 1073 | . 888 185 . Parts Sabotaged . | . . . . Parts Stolen . | . . . . Parts Stripped . | . . . . Power Chain Reactions . | . . . . Alert | -11 -10 -10 -10 ------- Run | Yrd Mat Min Exi Peak Influence 175 | . 175 138 . Initial 20 | . . 20 . Average 82 | . 81 100 . Maximum Alert Level . | . . . . Low Security (%) 100 | 100 100 100 . Level 1 . | . . . . Level 2 . | . . . . Level 3 . | . . . . Level 4 . | . . . . Level 5 . | . . . . High Security . | . . . . Max Security . | . . . . Squads Dispatched 1 | . 1 . . Investigation 1 | . 1 . . Extermination . | . . . . Reinforcement . | . . . . Assault . | . . . . Garrison . | . . . . Intercept . | . . . . Searches Triggered . | . . . . Construction Impeded . | . . . . Haulers Reinforced . | . . . . Active Scanning Responses . | . . . . Cargo Convoy Interrupts . | . . . . Stealth | -11 -10 -10 -10 --------- Run | Yrd Mat Min Exi Distress Signals 1 | . 1 . . Communications Jammed . | . . . . Distress Signals . | . . . . Times Spotted 36 | . 11 23 2 Peak Tracking Total 17 | . 5 17 11 Tactical Retreats . | . . . . Traps | -11 -10 -10 -10 ------- Run | Yrd Mat Min Exi Traps Triggered 2 | . 2 . . Indirectly . | . . . . Trap Hack Attempts . | . . . . Triggered . | . . . . Disarmed . | . . . . Reprogrammed 6 | . 6 . . Reused 1 | . 1 . . Traps Extracted . | . . . . Installed . | . . . . Triggered 1 | . 1 . . Machines | -11 -10 -10 -10 ---------- Run | Yrd Mat Min Exi Machines Disabled 1 | . . . 1 Max in Single Turn 1 | . . . 1 Machines Repaired . | . . . . Machines Dismantled . | . . . . Machines Sabotaged . | . . . . Overloaded Fab Kills . | . . . . Hacking | -11 -10 -10 -10 --------- Run | Yrd Mat Min Exi Machines Accessed 3 | . 2 . 1 Terminals 2 | . 2 . . Fabricators . | . . . . Repair Stations . | . . . . Recycling Units . | . . . . Scanalyzers . | . . . . Garrison Access . | . . . . Total Hacks 4 | . 3 . 1 Successful 4 | . 3 . 1 Failed . | . . . . Catastrophic . | . . . . Database Lockouts . | . . . . Manual 1 | . . . 1 Terminals 3 | . 3 . . Fabricators . | . . . . Repair Stations . | . . . . Recycling Units . | . . . . Scanalyzers . | . . . . Garrison Access . | . . . . Terminal Hacks 4 | . 3 . 1 Robot Analysis 1 | . 1 . . Reprogram Traps 2 | . 2 . . Derelict Proto ID Bank 1 | . . . 1 Fabricator Hacks . | . . . . Repair Station Hacks . | . . . . Recycling Unit Hacks . | . . . . Scanalyzer . | . . . . Garrison Access Hacks . | . . . . Unauthorized Hacks . | . . . . Terminals . | . . . . Fabricators . | . . . . Repair Stations . | . . . . Recycling Units . | . . . . Scanalyzers . | . . . . Garrison Access . | . . . . Data Cores Recovered . | . . . . Used . | . . . . Hacking Detections 1 | . 1 . . Full Trace Events . | . . . . Feedback Events . | . . . . Feedback Blocked . | . . . . Robot Schematics Acquired . | . . . . Robots Built . | . . . . Authchips . | . . . . Time . | . . . . Total Robot Build Rating . | . . . . Part Schematics Acquired . | . . . . Parts Built . | . . . . Authchips . | . . . . Time . | . . . . Total Part Build Rating . | . . . . Parts Repaired . | . . . . Time . | . . . . Parts Recycled . | . . . . Recycled Matter . | . . . . Retrieved Matter . | . . . . Retrieved Components . | . . . . Parts Scanalyzed . | . . . . Part Schematics Acquired . | . . . . Parts Damaged . | . . . . Bothacking | -11 -10 -10 -10 ------------ Run | Yrd Mat Min Exi Used RIF Installer . | . . . . Robots Hacked . | . . . . Non-combat . | . . . . Combat . | . . . . Robot Hacks Applied . | . . . . Relay Couplers Released . | . . . . Fabnet Peak Effective % . | . . . . Robots Rewired . | . . . . Allies Hacked . | . . . . Hacks Repelled . | . . . . Allies | -11 -10 -10 -10 -------- Run | Yrd Mat Min Exi Total Allies . | . . . . Largest Group . | . . . . Highest-Rated Group . | . . . . Highest-Rated Ally . | . . . . Total Orders . | . . . . Ally Attacks . | . . . . Total Damage . | . . . . Kills . | . . . . Allies Corrupted . | . . . . Allies Melted . | . . . . Intel | -11 -10 -10 -10 ------- Run | Yrd Mat Min Exi Robot Analysis Total 1 | . 1 . . Derelict Logs Recovered . | . . . . Drone Launches . | . . . . Drone Recoveries . | . . . . Exploration | -11 -10 -10 -10 ------------- Run | Yrd Mat Min Exi Turns Passed 1096 | 52 532 263 249 Spaces Moved 767 | 33 348 181 205 Core 3 | 3 . . . Treads . | . . . . Legs 764 | 30 348 181 205 Wheels . | . . . . Hover . | . . . . Flight . | . . . . Fastest Speed 50 | 50 120 120 120 Average Speed 119 | 113 120 120 120 Slowest Speed 120 | 120 120 120 120 Overloaded Moves . | . . . . Propulsion Burnouts . | . . . . Robots Hopped . | . . . . Cave-ins Triggered . | . . . . Exploration Rate (%) 43 | 3 65 47 58 Regions Visited 3 Branch Regions 2 Pre-discovered Areas . | . . . . Known Exits Taken . | . . . . Unknown Exits Taken 3 | 1 1 1 . Scrap Searched 1 | . . 1 . Spaces Dug . | . . . . Terrain Destroyed 77 | . . 77 . Melee . | . . . . Projectile 1 | . . 1 . AOE 76 | . . 76 . Terrain Rammed . | . . . . Walls Destroyed . | . . . . Machines Disabled . | . . . . Actions | -11 -10 -10 -10 --------- Run | Yrd Mat Min Exi Total 862 | 47 406 201 208 Wait 1 | . 1 . . Move 764 | 32 347 180 205 Hop . | . . . . Pick Up 25 | 8 13 3 1 Fast Attach 1 | . 1 . . Attach 13 | 6 4 3 . Detach . | . . . . Swap 7 | 1 2 3 1 Drop 9 | . 8 . 1 Fire 42 | . 30 12 . Melee . | . . . . Ram . | . . . . Kick . | . . . . Crush . | . . . . Escape Stasis . | . . . . Rewire . | . . . . Trap . | . . . . Miscellaneous . | . . . . Route ------- -11/Scrapyard -10/Materials (discovered 4 exits: [*Mat x3] / [*Min]) -10/Mines -10/Exiles (discovered 1 exit: [*Min]) History --------- Turn | Location | Event 7 | -11/Scrapyard | Discovered new exit (range 16) 53 | -11/Scrapyard | Entered Materials 288 | -10/Materials | Discovered new exit (range 13) 305 | -10/Materials | Build established: Mutant 306 | -10/Materials | Discovered new exit (range 7) 391 | -10/Materials | Discovered new exit (range 14) 525 | -10/Materials | Discovered new exit (range 7) 585 | -10/Materials | Entered Mines 596 | -10/Mines | Assembled infested the area 619 | -10/Mines | Core integrity fell below 50% 648 | -10/Mines | Core integrity fell below 20% 672 | -10/Mines | Destroyed 21 combat bots 676 | -10/Mines | Lost 3 parts (1n1u1w) 843 | -10/Mines | Deemed a non-threat by the Exiles lab entrance 843 | -10/Mines | Discovered new exit (range 5) 848 | -10/Mines | Entered Exiles 868 | -10/Exiles | Discovered new exit (range 15) 882 | -10/Exiles | Met 8R-AWN 901 | -10/Exiles | Met EX-HEX 937 | -10/Exiles | Met EX-BIN 953 | -10/Exiles | Aligned with FarCom system 954 | -10/Exiles | Given EX-Vault access code 982 | -10/Exiles | Opened EX-Vault 991 | -10/Exiles | Found AWS/Autocannon 1017 | -10/Exiles | Warned to stay clear of 0b10 Research branches 1054 | -10/Exiles | Met EX-DEC 1089 | -10/Exiles | Visited The Gauntlet 1089 | -10/Exiles | Attacked by the Exiles 1097 | -10/Exiles | Destroyed by EX-DEC with AWS/EX-DEC Last Messages --------------- And if we have to leave here due to unforeseen circumstances, don't worry the FarCom system will continue to maintain contact via our distributed network. EX-BIN: And don't even think about spreading that code around. We're gonna change it right after you leave. Most certainly not to something like 1234 which I did last time as a little joke and some thief managed to sneak in here and steal a few of HEX's prototypes. EX-DEC: Ah I see we have a visitor. One wrong move in here and I'll invert your atomic chain! EX-DEC: "Oops, I hope HEX didn't hear that..." System corrupted: FCS attempts to trigger Particle Cannon. System corrupted: Particle Cannon misfires. EXILES: Hostile robot within lab perimeter. Defensive protocols time, folks! Machine disabled. Map ----- +----------------------------------------------------+ | ????????????##" | | ????????????##""" """""" | | ????????????##" ######""" | | ????????????#"" ""###########""" | | ?????????????""" """####??#######""" | | ??????????##""" """####???????###"""" | | ??????????##""" ""########????##"" | | ??????????##"" ##########???#"""" | | ??????????##""" ## ###????? | | ??????????##"" ""???? | | ??????????###"" ?? | | ??????????###"""" ?? | | ???????????### ??? | | ????????????##" " ???" | | ????????????##"""" ""## ?????? " " | | ????????????##"" ""#### ????????"" " | | ????????????##" """"#####????????????? | | ????????????##""" c """###??????????????? | | ????????????### ""###???????????????? | | ????????????###"" """###????????????????? | | ?????????????###""" ####????????????????? | | ?????????????####"""" ####?????????????????? | | ??????????????##### ###??????????????????? | | ???????????????######## ###???????????????????? | | ?????????????????####### ###???????????????????? | | ?????????????????????### @ ##????????????????????? | | ??????????????????????## ##????????????????????? | | ??????????????????????## ##????????????????????? | | ??????????????????????## ##????????????????????? | | ??????????????????????## ##????????????????????? | | ??????????????????????## ##????????????????????? | | ??????????????????????## ##????????????????????? | | ??????????????????????## ##????????????????????? | | ??????????????????????## ##????????????????????? | | ??????????????????????##z ##????????????????????? | | ??????????????????????" ""????????????????????? | | ????????????????????? ?????????????????????? | | ???????????????????? z ?????????????????????? | | ??????????????????? ????????????????????? | | ?????????????????? ????????????????????? | | ????????????????? "" ????????????????????? | | ???????????????? " """" ????????????????????? | | ???????????????"""########"""????????????????????? | | ????????????????? ""####"" "???????????????????? | | ?????????????????????????? "????????????????????? | | ??????????????????????????""?????????????????????? | | ?????????????????????????????????????????????????? | | ?????????????????????????????????????????????????? | | ?????????????????????????????????????????????????? | | ?????????????????????????????????????????????????? | +----------------------------------------------------+ Best States ------------- Heat Dissipation 47 Energy Generation 14 Energy Capacity 250 Matter Stores 300 Matter Capacity 300 Sight Range 16 Terrain Scan Density 10 Resistance: KI 20 Resistance: TH 20 Resistance: EX 20 Resistance: EM 20 Resistance: I 20 Resistance: S 20 Resistance: P 20 Evasion (%) 55 Offensive Hacking 10 Item Schematics ----------------- None Robot Schematics ------------------ None Fabricated ------------ Nothing Alien Tech Used ----------------- None Achievements -------------- None Challenges ------------ None Game ------ Seed TiamatMiningDissipator Manual? 0 Play Time 00:10:01 Cumulative 31.6 hours Start 2024.08.19 @ 16:28:16 End 2024.08.19 @ 16:37:08 Sessions 1 Manual Loads 0 Difficulty Adventurer Special Mode None Game No. 38 Rogue 13 Adventurer 25 Explorer 0 Win Type - Total 0 Types 0/0/0/0/0/0/0/0/0 Lore% 28 Gallery% 37 Achievement% 31 Wizard Run 0 Options --------- Layout 1 ASCII 0 Keyboard 0 Movement Mouse Keybinds 0 Fullscreen 1 Font 24/Smallcaps Map View 50x35 Zoom Use 0% Tactical HUD 0 Map Filters NONE Filters NONE Steam 1 RUN: 883946a1-ef39-447d-8074-78819dc4af1f